bitfinex-derivatives/quotes_SOLF0:USTF0_20250309
["timestamp","ask_amount","ask_price","bid_price","bid_amount"]
[1741495192767,0.04778098,138.26,138.24,0.05444131]
[1741495193671,0.04778098,138.26,138.24,7.28944131]
[1741495194468,0.04778098,138.26,138.24,0.05444131]
[1741495195271,7.28208098,138.26,138.24,0.05444131]
[1741495195675,25.62,138.25,138.24,0.05444131]
[1741495195874,44.76184859,138.25,138.24,0.05444131]
[1741495196666,32.8545,138.25,138.24,0.05444131]
[1741495200474,44.76184859,138.25,138.24,4.131e-05]
[1741495203080,37.52734859,138.25,138.16,11.90734859]
[1741495203288,11.90734859,138.2,138.14,60.87426682]
[1741495203587,25.6,138.19,138.14,60.87426682]
[1741495204083,7.2382,138.18,138.14,60.87426682]
[1741495204286,7.28944107,138.18,138.15,0.05365388]
[1741495204582,0.05124107,138.18,138.15,7.29335388]
[1741495204788,0.05124107,138.18,138.16,11.90734859]
[1741495206090,0.05124107,138.18,138.15,0.05365388]
[1741495207391,7.28964107,138.18,138.15,7.29345388]
[1741495207590,0.05124107,138.18,138.15,0.05365388]
[1741495208487,7.28964107,138.18,138.15,7.29335388]
[1741495208689,7.28964107,138.18,138.16,11.90734859]
[1741495209692,0.05124107,138.18,138.16,11.90734859]
[1741495210182,0.05124107,138.18,138.16,19.14644859]
[1741495211794,0.05124107,138.18,138.17,7.2387]
[1741495211988,25.62,138.22,138.16,11.90734859]
[1741495212188,25.62,138.22,138.18,11.90734859]
[1741495212494,7.237,138.21,138.18,11.90734859]
[1741495212993,7.28309019,138.21,138.18,11.95494522]
[1741495213988,0.04609019,138.21,138.18,0.04759663]
[1741495214993,7.2377,138.19,138.18,0.04759663]
[1741495215303,7.2377,138.19,138.12,11.90734859]
[1741495215304,25.62,138.19,138.12,11.90734859]
[1741495215600,7.2397,138.16,138.12,19.14844859]
[1741495215795,25.62,138.15,138.12,19.14844859]
[1741495216197,25.67158658,138.15,138.12,19.20323493]
[1741495216901,32.91178658,138.15,138.12,11.96213493]
[1741495217606,7.2404,138.14,138.12,0.05478634]
[1741495217797,37.57893517,138.15,138.12,0.05478634]
[1741495218099,7.2403,138.14,138.12,0.05478634]
[1741495218497,37.57893517,138.15,138.12,0.05478634]
[1741495218709,11.90734859,138.13,138.12,0.05478634]
[1741495219001,11.90734859,138.13,138.08,11.90734859]
[1741495219203,25.62,138.12,138.08,11.90734859]
[1741495219800,32.8615,138.12,138.08,11.90734859]
[1741495219996,25.62,138.12,138.09,7.2429]
[1741495220301,0.05122093,138.11,138.09,7.29602105]
[1741495220807,0.05122093,138.11,138.1,19.14974859]
[1741495223007,25.62,138.16,138.14,7.2399]
[1741495224004,25.67335621,138.16,138.14,7.29549427]
[1741495225093,25.67335621,138.16,138.14,0.05559427]
[1741495225299,25.67335621,138.16,138.15,7.2398]
[1741495226102,25.67335621,138.16,138.14,19.20304286]
[1741495226699,25.67335621,138.16,138.14,11.96294286]
[1741495226903,25.67335621,138.16,138.15,7.2398]
[1741495230010,25.67335621,138.16,138.14,7.29569427]
[1741495230610,25.67335621,138.16,138.15,7.2398]
[1741495231312,25.67335621,138.16,138.14,0.05559427]
[1741495231512,25.67335621,138.16,138.14,7.29559427]
[1741495233917,0.05335621,138.16,138.14,7.29559427]
[1741495236619,19.14364859,138.22,138.14,11.96294286]
[1741495236917,32.857,138.21,138.18,7.2379]
[1741495237818,0.05066228,138.21,138.18,7.28411347]
[1741495238013,25.62,138.2,138.18,7.28411347]
[1741495238214,25.62,138.2,138.18,0.04621347]
[1741495239218,32.8573,138.2,138.18,0.04621347]
[1741495240219,25.62,138.2,138.18,0.04621347]
[1741495240719,0.05066228,138.21,138.18,0.04621347]
[1741495241318,0.05066228,138.21,138.18,7.28421347]
[1741495243522,0.05066228,138.21,138.18,0.04621347]
[1741495243717,7.28726228,138.21,138.18,0.04621347]
[1741495244521,0.05066228,138.21,138.19,7.2375]
[1741495245820,0.05066228,138.21,138.18,7.28421347]
[1741495248318,0.05066228,138.21,138.18,0.04621347]
[1741495248917,7.28746228,138.21,138.18,7.28431347]
[1741495249422,7.28746228,138.21,138.18,0.04621347]
[1741495250825,11.90734859,138.2,138.18,0.04621347]
[1741495251018,25.62,138.19,138.18,0.04621347]
[1741495251218,32.8577,138.19,138.18,0.04621347]
[1741495251419,25.62,138.19,138.18,0.04621347]
[1741495252324,32.8577,138.19,138.18,0.04621347]
[1741495255319,25.62,138.19,138.18,0.04621347]
[1741495257722,0.05066228,138.21,138.19,7.2376]
[1741495257920,0.05066228,138.21,138.2,11.90734859]
[1741495259526,0.05066228,138.21,138.2,19.14444859]
[1741495262327,32.8542,138.26,138.2,11.90734859]
[1741495262528,32.8542,138.26,138.22,11.90734859]
[1741495262722,7.2346,138.25,138.22,11.90734859]
[1741495262922,25.62,138.26,138.22,11.90734859]
[1741495263422,0.05291649,138.25,138.23,0.05461508]
[1741495266526,0.05291649,138.25,138.23,7.28981508]
[1741495269145,0.05291649,138.25,138.23,0.05461508]
[1741495269433,15.74060153,138.35,138.24,60.67410784]
[1741495269627,109.83458855,138.38,138.34,11.90734859]
[1741495270228,109.83458855,138.38,138.35,7.2292]
[1741495270434,109.83458855,138.38,138.34,11.90734859]
[1741495270633,109.86417522,138.38,138.35,0.05079655]
[1741495271330,109.86417522,138.38,138.36,11.90734859]
[1741495272537,109.86417522,138.38,138.35,0.05079655]
[1741495273638,0.02958667,138.38,138.35,0.05079655]
[1741495274642,0.02958667,138.38,138.35,7.27999655]
[1741495275945,0.02958667,138.38,138.36,11.90734859]
[1741495277650,0.02958667,138.38,138.37,7.2283]
[1741495279149,193.0,138.52,138.36,11.90734859]
[1741495279451,11.90734859,138.47,138.41,11.90734859]
[1741495279649,26.24,138.46,138.41,11.90734859]
[1741495279946,26.24,138.46,138.41,19.13344859]
[1741495280345,26.24,138.46,138.42,0.05176604]
[1741495281747,33.4636,138.46,138.42,0.05176604]
[1741495281947,26.24,138.46,138.42,0.05176604]
[1741495283249,33.4232,138.47,138.42,0.05176604]
[1741495284149,7.2236,138.46,138.42,0.05176604]
[1741495285251,7.2242,138.45,138.42,0.05176604]
[1741495287051,26.2,138.47,138.42,0.05176604]
[1741495287250,26.16,138.47,138.42,0.05176604]
[1741495288350,7.2244,138.45,138.42,0.05176604]
[1741495288951,26.16,138.47,138.42,0.05176604]
[1741495289152,7.2251,138.43,138.42,0.05176604]
[1741495292749,26.22,138.44,138.35,18.44754214]
[1741495292954,44.71930818,138.44,138.35,25.67644214]
[1741495293149,44.66754214,138.44,138.33,48.61024214]
[1741495293346,18.44754214,138.42,138.33,18.44754214]
[1741495293549,18.44754214,138.4,138.31,25.67874214]
[1741495293747,30.2762,138.39,138.31,7.2312]
[1741495294052,0.05176604,138.37,138.34,0.0456621]
[1741495294253,7.2294,138.35,138.34,0.0456621]
[1741495297458,33.469,138.36,138.34,0.0456621]
[1741495299360,7.2293,138.35,138.34,0.0456621]
[1741495302457,26.24,138.36,138.34,0.0456621]
[1741495302657,33.469,138.36,138.34,0.0456621]
[1741495303460,7.2293,138.35,138.34,0.0456621]
[1741495304862,7.2312,138.32,138.3,11.82263079]
[1741495305059,26.16,138.33,138.28,11.82263079]
[1741495305559,7.231,138.32,138.28,11.82263079]
[1741495305859,7.231,138.32,138.29,7.2324]
[1741495306065,0.05056794,138.31,138.3,11.82263079]
[1741495306464,0.05056794,138.31,138.3,19.05453079]
[1741495311463,0.05056794,138.31,138.3,11.82263079]
[1741495312765,0.05056794,138.31,138.3,19.05453079]
[1741495324083,0.05056794,138.31,138.29,0.04843934]
[1741495324675,0.05056794,138.31,138.29,7.28053934]
[1741495328184,0.05056794,138.31,138.3,7.2319]
[1741495328585,0.05056794,138.31,138.29,11.87107013]
[1741495328888,0.05056794,138.31,138.3,7.2319]
[1741495329186,0.05056794,138.31,138.29,11.87107013]
[1741495330389,0.05056794,138.31,138.29,19.10327013]
[1741495331483,0.05056794,138.31,138.29,11.87107013]
[1741495332490,0.05056794,138.31,138.3,7.2319]
[1741495335479,7.28216794,138.31,138.29,11.87107013]
[1741495335691,0.05056794,138.31,138.29,0.04843934]
[1741495335990,7.2319,138.3,138.29,0.04843934]
[1741495339088,0.05056794,138.31,138.29,0.04843934]
[1741495339790,7.2319,138.3,138.29,0.04843934]
[1741495342092,0.05056794,138.31,138.29,0.04843934]
[1741495342293,7.28236794,138.31,138.29,0.04843934]
[1741495342992,7.2319,138.3,138.29,0.04843934]
[1741495343595,0.05056794,138.31,138.29,0.04843934]
[1741495344889,7.2319,138.3,138.29,0.04843934]
[1741495349794,11.82263079,138.3,138.25,11.82263079]
[1741495349995,25.94,138.29,138.25,11.82263079]
[1741495350597,7.2343,138.26,138.23,11.82263079]
[1741495350899,33.20913436,138.26,138.23,11.87268667]
[1741495352604,25.97483436,138.26,138.23,11.87268667]
[1741495352794,7.2348,138.25,138.23,11.87268667]
[1741495353796,33.20903436,138.26,138.23,11.87268667]
[1741495353999,25.97483436,138.26,138.23,11.87268667]
[1741495354404,25.97483436,138.26,138.23,19.10808667]
[1741495355199,25.97483436,138.26,138.23,11.87268667]
[1741495358901,25.97483436,138.26,138.25,7.2345]
[1741495359797,0.05483436,138.26,138.25,19.05713079]
[1741495361311,25.9,138.29,138.28,7.233]
[1741495361609,5.911,138.34,138.28,11.82263079]
[1741495361810,25.92,138.33,138.28,11.82263079]
[1741495362503,0.04617689,138.32,138.29,0.04703541]
[1741495364610,0.04617689,138.32,138.3,7.2316]
[1741495365310,0.04617689,138.32,138.31,7.2314]
[1741495366306,0.04617689,138.32,138.3,7.2317]
[1741495367216,0.04617689,138.32,138.29,0.04703541]
[1741495367612,0.04617689,138.32,138.31,7.2314]
[1741495369410,25.86,138.35,138.34,7.2298]
[1741495369809,25.86,138.35,138.32,11.82263079]
[1741495370010,11.82263079,138.37,138.34,7.2298]
[1741495370414,25.88,138.36,138.34,7.2298]
[1741495370717,25.88,138.36,138.34,7.28133202]
[1741495371313,25.88,138.36,138.34,0.05153202]
[1741495373118,11.82263079,138.35,138.34,0.05153202]
[1741495374109,19.05193079,138.35,138.3,19.05433079]
[1741495375314,7.28568138,138.34,138.31,0.05115105]
[1741495375515,25.86,138.33,138.31,0.05115105]
[1741495379622,33.0903,138.33,138.31,0.05115105]
[1741495381118,25.86,138.33,138.31,0.05115105]
[1741495382527,33.0906,138.33,138.31,0.05115105]
[1741495383932,37.68263079,138.33,138.31,0.05115105]
[1741495384125,3.9361,138.32,138.23,11.82263079]
[1741495384322,11.82263079,138.28,138.21,11.82263079]
[1741495384625,19.05703079,138.26,138.21,11.82263079]
[1741495384831,11.82263079,138.26,138.21,11.82263079]
[1741495385129,0.05419136,138.25,138.22,0.05106912]
[1741495385331,25.96,138.24,138.22,0.05106912]
[1741495393546,25.95419136,138.25,138.24,7.235]
[1741495394341,0.05419136,138.25,138.24,7.235]
[1741495394542,0.05419136,138.25,138.23,19.05803079]
[1741495395037,0.05419136,138.25,138.23,11.82263079]
[1741495395241,0.05419136,138.25,138.24,7.235]
[1741495398945,25.88,138.29,138.27,7.2331]
[1741495399844,25.88,138.31,138.27,11.82263079]
[1741495400049,0.04809046,138.29,138.27,11.87407599]
[1741495400547,0.04809046,138.29,138.27,19.10737599]
[1741495402249,0.04809046,138.29,138.27,11.87407599]
[1741495402550,0.04809046,138.29,138.28,7.233]
[1741495404445,19.05213079,138.35,138.27,11.87407599]
[1741495404643,25.84,138.34,138.31,7.2313]
[1741495405845,25.88525748,138.34,138.31,0.04645791]
[1741495406043,7.2309,138.32,138.31,0.04645791]
[1741495441984,11.82263079,138.33,138.22,9.95684823]
[1741495442286,11.82263079,138.27,138.21,39.71971823]
[1741495442481,11.82263079,138.25,138.21,39.71971823]
[1741495442880,11.82263079,138.23,138.21,39.71971823]
[1741495443083,32.8961,138.22,138.21,39.71971823]
[1741495443281,32.8961,138.22,138.21,39.76600323]
[1741495444090,25.66,138.22,138.21,39.76600323]
[1741495445187,32.8961,138.22,138.21,39.76600323]
[1741495445794,25.66,138.22,138.21,39.76600323]
[1741495446190,25.66,138.22,138.21,0.046285]
[1741495447498,32.8961,138.22,138.21,0.046285]
[1741495449101,25.66,138.22,138.21,0.046285]
[1741495450597,0.04953215,138.24,138.21,0.046285]
[1741495450796,0.04953215,138.24,138.21,11.86891579]
[1741495451703,7.28493215,138.24,138.21,11.86891579]
[1741495452202,7.28493215,138.24,138.21,19.10541579]
[1741495452601,0.04953215,138.24,138.21,19.10541579]
[1741495454906,7.28463215,138.24,138.21,19.10541579]
[1741495456306,0.04953215,138.24,138.23,7.2356]
[1741495457610,25.64,138.27,138.23,11.82263079]
[1741495458105,25.64,138.27,138.24,7.2346]
[1741495458702,0.04218324,138.27,138.25,7.2345]
[1741495459611,0.04218324,138.27,138.24,0.05046189]
[1741495459910,0.04218324,138.27,138.24,7.28536189]
[1741495460305,0.04218324,138.27,138.24,0.05046189]
[1741495460612,7.27608324,138.27,138.24,0.05046189]
[1741495460912,0.04218324,138.27,138.24,0.05046189]
[1741495461114,7.2345,138.25,138.24,0.05046189]
[1741495462911,7.2343,138.26,138.24,0.05046189]
[1741495465720,19.09841403,138.27,138.24,0.05046189]
[1741495468012,0.04218324,138.27,138.24,0.05046189]
[1741495468217,0.04218324,138.27,138.25,7.2344]
[1741495474222,0.04218324,138.27,138.26,7.234]
[1741495474720,0.04218324,138.27,138.24,5.97226189]
[1741495475419,0.04218324,138.27,138.24,17.79489268]
[1741495475620,0.04218324,138.27,138.25,7.2343]
[1741495476320,0.04218324,138.27,138.24,17.79489268]
[1741495476621,0.04218324,138.27,138.24,25.02949268]
[1741495476921,0.04218324,138.27,138.24,17.79489268]
[1741495477314,0.04218324,138.27,138.25,7.2342]
[1741495480112,0.04218324,138.27,138.26,7.234]
[1741495480317,0.04218324,138.27,138.26,19.05663079]
[1741495481218,0.04218324,138.27,138.25,7.2343]
[1741495481528,0.04218324,138.27,138.25,19.05693079]
[1741495482621,0.04218324,138.27,138.25,11.82263079]
[1741495482817,0.04218324,138.27,138.26,7.234]
[1741495484227,0.04218324,138.27,138.24,0.05046189]
[1741495484819,0.04218324,138.27,138.24,7.28506189]
[1741495485828,0.04218324,138.27,138.26,7.234]
[1741495486224,0.04218324,138.27,138.24,0.05046189]
[1741495486424,0.04218324,138.27,138.25,7.2343]
[1741495488627,0.04218324,138.27,138.26,7.234]
[1741495490033,0.04218324,138.27,138.25,11.82263079]
[1741495490632,0.04218324,138.27,138.26,7.234]
[1741495495335,0.04218324,138.27,138.25,11.82263079]
[1741495495933,7.234,138.26,138.24,7.28496189]
[1741495496935,7.234,138.26,138.24,0.05046189]
[1741495499137,7.234,138.26,138.24,7.28546189]
[1741495499332,7.27588324,138.27,138.24,7.28546189]
[1741495502436,0.04218324,138.27,138.24,0.05046189]
[1741495502644,25.62,138.33,138.25,11.82263079]
[1741495502936,25.62,138.33,138.27,11.82263079]
[1741495503443,7.2306,138.33,138.29,7.2321]
[1741495503643,25.62,138.32,138.29,7.2321]
[1741495503837,25.62,138.32,138.3,0.05485446]
[1741495504545,25.62,138.32,138.3,7.28675446]
[1741495504844,25.62,138.33,138.3,0.05485446]
[1741495505039,129.34919802,138.34,138.3,0.05485446]
[1741495505245,143.14656723,138.34,138.31,7.231]
[1741495505644,117.52656723,138.34,138.31,7.231]
[1741495505942,143.14656723,138.34,138.31,7.231]
[1741495507044,150.37646723,138.34,138.3,7.28655446]
[1741495507941,7.2304,138.33,138.3,7.28655446]
[1741495509046,154.96919802,138.34,138.3,0.05485446]
[1741495509342,11.82263079,138.32,138.3,0.05485446]
[1741495509545,25.62,138.31,138.3,0.05485446]
[1741495510444,32.8514,138.31,138.3,0.05485446]
[1741495511246,7.2329,138.29,138.25,19.05703079]
[1741495512246,0.05105116,138.28,138.26,0.05428004]
[1741495512747,0.05105116,138.28,138.26,7.28818004]
[1741495514450,0.05105116,138.28,138.26,0.05428004]
[1741495517053,0.05105116,138.28,138.27,7.2335]
[1741495517953,0.05105116,138.28,138.26,0.05428004]
[1741495519155,0.05105116,138.28,138.26,7.28798004]
[1741495519447,0.05105116,138.28,138.26,0.05428004]
[1741495519658,0.05105116,138.28,138.27,11.82263079]
[1741495519847,0.05105116,138.28,138.27,19.05613079]
[1741495520950,25.62,138.33,138.3,7.2315]
[1741495521554,32.8504,138.33,138.29,19.05483079]
[1741495522151,32.8504,138.33,138.3,0.04942384]
[1741495524359,32.8504,138.33,138.3,7.28132384]
[1741495524859,25.62,138.33,138.3,7.28132384]
[1741495526162,32.8504,138.33,138.3,7.28132384]
[1741495528256,117.52656723,138.34,138.3,0.04942384]
[1741495528459,25.62,138.36,138.31,11.82263079]
[1741495528955,7.2294,138.35,138.32,0.04611812]
[1741495529450,7.2299,138.34,138.32,0.04611812]
[1741495529654,11.82263079,138.35,138.32,0.04611812]
[1741495529852,25.62,138.36,138.32,0.04611812]
[1741495530059,32.849,138.36,138.32,7.27661812]
[1741495530564,32.849,138.36,138.33,7.2303]
[1741495530959,25.62,138.36,138.33,7.2303]
[1741495532064,19.05113079,138.37,138.33,7.2303]
[1741495532269,7.2289,138.36,138.33,7.2303]
[1741495536065,11.82263079,138.35,138.32,0.04611812]
[1741495536266,25.62,138.34,138.32,0.04611812]
[1741495537064,32.8501,138.34,138.32,0.04611812]
[1741495537263,25.62,138.34,138.32,0.04611812]
[1741495537463,11.82263079,138.33,138.32,0.04611812]
[1741495538369,19.05293079,138.33,138.32,0.04611812]
[1741495544081,7.2303,138.33,138.32,0.04611812]
[1741495550482,25.62,138.34,138.32,0.04611812]
[1741495551990,7.2303,138.33,138.32,0.04611812]
[1741495552488,32.8498,138.34,138.32,0.04611812]
[1741495555290,7.2303,138.33,138.32,0.04611812]
[1741495555490,11.82263079,138.35,138.32,0.04611812]
[1741495555491,37.44263079,138.35,138.32,0.04611812]
[1741495556199,7.2301,138.34,138.32,0.04611812]
[1741495556600,37.44263079,138.35,138.32,0.04611812]
[1741495556799,44.67203079,138.35,138.32,7.27671812]
[1741495557499,37.44263079,138.35,138.32,0.04611812]
[1741495557700,7.2301,138.34,138.32,0.04611812]
[1741495558000,37.44263079,138.35,138.32,0.04611812]
[1741495558195,44.67223079,138.35,138.32,7.27691812]
[1741495559500,7.2299,138.34,138.32,0.04611812]
[1741495561706,25.62,138.35,138.32,0.04611812]
[1741495562700,25.62,138.35,138.33,7.23]
[1741495565100,25.62,138.35,138.32,0.04611812]
[1741495565301,25.62,138.35,138.32,7.27671812]
[1741495565495,32.8495,138.35,138.32,7.27671812]
[1741495565801,25.62,138.35,138.32,0.04611812]
[1741495566195,32.8495,138.35,138.32,0.04611812]
[1741495567100,32.8495,138.35,138.32,7.27681812]
[1741495572797,7.2295,138.35,138.32,7.27681812]
[1741495573005,31.5659,138.41,138.33,11.82263079]
[1741495573209,31.5659,138.41,138.36,11.82263079]
[1741495573504,31.5659,138.41,138.36,11.87434195]
[1741495573704,38.7924,138.41,138.37,7.2279]
[1741495573904,31.5659,138.41,138.37,7.2279]
[1741495574406,43.38853079,138.41,138.36,0.05171116]
[1741495575005,50.61493079,138.41,138.36,0.05171116]
[1741495575405,24.99493079,138.41,138.36,11.87434195]
[1741495576999,13.1723,138.41,138.36,11.87434195]
[1741495577404,5.9459,138.41,138.36,11.87434195]
[1741495577605,7.2267,138.4,138.36,11.87434195]
[1741495578112,7.2276,138.39,138.36,11.87434195]
[1741495579002,25.6,138.38,138.36,0.05171116]
[1741495580312,7.2283,138.37,138.36,0.05171116]
[1741495584917,19.05093079,138.37,138.36,0.05171116]
[1741495590416,7.2283,138.37,138.36,0.05171116]
[1741495593215,19.05093079,138.37,138.36,1.116e-05]
[1741495593612,15.44263079,138.37,138.28,11.82263079]
[1741495593813,11.82263079,138.33,138.28,11.82263079]
[1741495594014,25.6,138.32,138.28,11.82263079]
[1741495594220,32.8311,138.32,138.28,11.82263079]
[1741495594719,7.2860036,138.31,138.29,0.05297143]
[1741495596514,0.0546036,138.31,138.29,7.28537143]
[1741495597216,0.0546036,138.31,138.29,0.05297143]
[1741495597716,0.0546036,138.31,138.3,11.82263079]
[1741495598518,0.0546036,138.31,138.29,0.05297143]
[1741495599421,7.2319,138.3,138.29,0.05297143]
[1741495600617,0.0546036,138.31,138.29,0.05297143]
[1741495600618,7.2864036,138.31,138.29,0.05297143]
[1741495601213,7.2319,138.3,138.29,0.05297143]
[1741495601416,17.75853439,138.31,138.24,11.82263079]
[1741495601621,11.82263079,138.29,138.24,11.82263079]
[1741495601823,25.62,138.28,138.24,11.82263079]
[1741495602322,7.2339,138.27,138.24,11.82263079]
[1741495602620,7.28781303,138.27,138.25,0.04740003]
[1741495603018,0.05391303,138.27,138.25,0.04740003]
[1741495603724,7.234,138.26,138.25,0.04740003]
[1741495604926,7.2349,138.25,138.21,9.95684823]
[1741495605128,25.6,138.25,138.21,9.95684823]
[1741495606025,25.6,138.25,138.22,0.05414811]
[1741495607730,37.42263079,138.25,138.22,0.05414811]
[1741495607928,39.43093079,138.25,138.22,0.05414811]
[1741495608126,11.82263079,138.23,138.22,0.05414811]
[1741495608723,19.05823079,138.23,138.22,0.05414811]
[1741495609623,11.82263079,138.23,138.22,0.05414811]
[1741495609828,7.29047458,138.24,138.22,0.05414811]
[1741495611129,0.05527458,138.24,138.22,0.05414811]
[1741495611329,19.05823079,138.23,138.22,0.05414811]
[1741495611723,11.82263079,138.23,138.22,0.05414811]
[1741495611919,7.29047458,138.24,138.22,0.05414811]
[1741495615324,7.2356,138.23,138.22,0.05414811]
[1741495615525,19.05823079,138.23,138.22,0.05414811]
[1741495620435,0.05527458,138.24,138.22,0.05414811]
[1741495621231,7.29037458,138.24,138.22,0.05414811]
[1741495622132,0.05527458,138.24,138.22,0.05414811]
[1741495622333,19.05823079,138.23,138.22,0.05414811]
[1741495626641,19.05823079,138.23,138.22,4.811e-05]
[1741495627933,11.82263079,138.23,138.13,11.82263079]
[1741495628139,11.82263079,138.18,138.12,7.2411]
[1741495628342,11.82263079,138.18,138.1,25.62]
[1741495628343,11.82263079,138.14,138.08,39.71971823]
[1741495628542,11.82263079,138.12,138.08,39.71971823]
[1741495628947,7.2419,138.11,138.08,39.71971823]
[1741495629141,25.84,138.1,138.09,0.04813891]
[1741495629954,33.0824,138.1,138.09,0.04813891]
[1741495630144,44.90503079,138.1,138.09,0.04813891]
[1741495630548,37.66263079,138.1,138.09,0.04813891]
[1741495631050,25.84,138.1,138.09,0.04813891]
[1741495631845,0.05196011,138.11,138.09,0.04813891]
[1741495632152,0.05196011,138.11,138.1,19.06503079]
[1741495632946,0.05196011,138.11,138.1,7.2424]
[1741495633151,0.05196011,138.11,138.09,7.29093891]
[1741495633855,0.05196011,138.11,138.1,7.2424]
[1741495635556,0.05196011,138.11,138.1,19.06503079]
[1741495639354,11.82263079,138.18,138.1,11.82263079]
[1741495639555,11.82263079,138.18,138.08,29.805]
[1741495639556,25.86,138.17,138.13,11.82263079]
[1741495639957,25.86,138.17,138.16,7.2389]
[1741495642257,25.86,138.17,138.15,7.28798938]
[1741495643757,33.0989,138.17,138.15,0.04838938]
[1741495644155,25.86,138.17,138.15,0.04838938]
[1741495644954,25.86,138.17,138.16,7.2392]
[1741495645157,25.82,138.17,138.16,7.2392]
[1741495645554,25.82,138.17,138.15,0.04838938]
[1741495647861,25.82,138.17,138.15,7.28808938]
[1741495649161,11.87226088,138.18,138.15,7.28808938]
[1741495649362,25.78,138.17,138.15,7.28808938]
[1741495650558,25.78,138.17,138.15,0.04838938]
[1741495651062,33.0187,138.17,138.15,0.04838938]
[1741495651463,25.78,138.17,138.15,0.04838938]
[1741495652355,11.82263079,138.16,138.15,0.04838938]
[1741495653564,19.06183079,138.16,138.15,0.04838938]
[1741495654759,11.82263079,138.16,138.15,0.04838938]
[1741495658765,19.06183079,138.16,138.15,0.04838938]
[1741495660969,25.78,138.17,138.15,0.04838938]
[1741495661669,33.0189,138.17,138.15,0.04838938]
[1741495662569,7.2392,138.16,138.15,0.04838938]
[1741495663666,33.0189,138.17,138.15,0.04838938]
[1741495671471,7.2392,138.16,138.15,0.04838938]
[1741495671665,25.78,138.17,138.15,0.04838938]
[1741495672169,33.0192,138.17,138.15,0.04838938]
[1741495676076,25.78,138.17,138.15,0.04838938]
[1741495676275,7.2392,138.16,138.15,0.04838938]
[1741495678476,11.82263079,138.16,138.09,11.82263079]
[1741495678678,7.2406,138.14,138.09,11.82263079]
[1741495678974,32.8806,138.14,138.11,7.2415]
[1741495679676,32.92853082,138.14,138.11,7.28799896]
[1741495680278,32.92853082,138.14,138.11,0.04649896]
[1741495680575,32.92853082,138.14,138.12,7.2413]
[1741495681271,32.92853082,138.14,138.11,7.28809896]
[1741495681676,37.51056161,138.14,138.11,0.04649896]
[1741495682578,44.75136161,138.14,138.11,0.04649896]
[1741495684876,7.2413,138.12,138.11,0.04649896]
[1741495685074,19.06393079,138.12,138.11,0.04649896]
[1741495688776,7.2428,138.1,138.06,7.2443]
[1741495688972,25.64,138.09,138.06,7.2443]
[1741495689177,25.64,138.09,138.05,19.06743079]
[1741495689581,32.8829,138.09,138.05,19.06743079]
[1741495689980,0.04606046,138.08,138.06,0.05347427]
[1741495690175,7.28976046,138.08,138.06,0.05347427]
[1741495690380,11.86869125,138.08,138.06,0.05347427]
[1741495691478,7.244,138.07,138.06,0.05347427]
[1741495692279,11.86869125,138.08,138.06,0.05347427]
[1741495692481,19.11239125,138.08,138.06,0.05347427]
[1741495694082,7.244,138.07,138.06,0.05347427]
[1741495694475,11.86869125,138.08,138.01,11.82263079]
[1741495694675,7.2453,138.05,138.01,19.06953079]
[1741495694877,32.9053,138.05,138.01,19.06953079]
[1741495695078,32.9053,138.05,137.99,11.82263079]
[1741495695079,11.82263079,138.04,137.99,11.82263079]
[1741495695278,25.66,138.05,137.99,11.82263079]
[1741495695474,25.66,138.05,138.01,11.82263079]
[1741495695781,0.04931937,138.03,138.01,11.86838911]
[1741495696084,0.04931937,138.03,138.02,7.2461]
[1741495701089,0.04931937,138.03,138.01,7.29285832]
[1741495701290,0.04931937,138.03,138.01,0.04575832]
[1741495702291,7.29541937,138.03,138.01,0.04575832]
[1741495702483,0.04931937,138.03,138.01,7.29285832]
[1741495702686,0.04931937,138.03,138.01,0.04575832]
[1741495704393,0.04931937,138.03,138.02,7.2466]
[1741495704590,0.04931937,138.03,138.01,0.04575832]
[1741495705197,0.04931937,138.03,138.01,7.29265832]
[1741495706296,0.04931937,138.03,138.01,0.04575832]
[1741495707498,0.04931937,138.03,138.02,7.2466]
[1741495708503,0.04931937,138.03,138.01,7.29265832]
[1741495708703,0.04931937,138.03,138.01,0.04575832]
[1741495709000,25.68,138.02,138.01,0.04575832]
[1741495710405,25.68,138.02,138.01,7.29285832]
[1741495717412,25.68,138.02,138.01,19.11548911]
[1741495722920,25.68,138.02,138.01,0.04575832]
[1741495723614,32.9266,138.02,138.01,0.04575832]
[1741495730526,25.68,138.02,138.01,0.04575832]
[1741495734827,0.04931937,138.03,138.01,0.04575832]
[1741495735030,0.04931937,138.03,138.02,11.82263079]